Cogmind - Beta 9.1 @@@ ROGUE MODE // 2019.11.03 @ 16:38:27 Player: Cassie Rose Result: Destroyed by G-34 Mercenary with Small Laser Performance ------------- Evolutions (0) 0 Regions Visited (1) 200 Robots Destroyed (32) 160 Value Destroyed (516) 516 Prototype IDs (2) 40 Alien Tech Used (0) 0 Bonus (0) 0 TOTAL SCORE: 916 Bonus ------- None Cogmind --------- Core Integrity 0/250 Matter 245/300 Energy 210/250 System Corruption 0% Temperature Cool (127) Location -10/Materials Parts ------- Power (1) Ion Engine Propulsion (2) Aluminum Leg Aluminum Leg Utility (2) Large Storage Unit Large Storage Unit Weapon (2) EM Pulse Gun EM Pulse Gun Inventory (16) Light Treads Light Treads Aluminum Leg Improved Heat Sink Sensor Array Sensor Array Signal Interpreter Improved Terrain Scanner Transport Network Coupler Beam Cannon Peak State ------------ Power Ion Engine Propulsion Aluminum Leg Aluminum Leg Utility Small Storage Unit Medium Storage Unit Weapon Small Laser Particle Gun Inventory Light Treads Light Treads Heat Sink Improved Heat Sink Sensor Array Improved Terrain Scanner Transport Network Coupler Assault Rifle [Rating: 9] Favorites ----------- Power Ion Engine Engine Ion Engine Propulsion Aluminum Leg Leg Aluminum Leg Utility Small Storage Unit Storage Small Storage Unit Weapon Assault Rifle Energy Gun EM Pulse Gun Ballistic Gun Assault Rifle Build | -11 -10 ------- Run | Scr Mat Slots Evolved . | . . Power . | . . Propulsion . | . . Utility . | . . Weapon . | . . Parts Attached 27 | 6 21 Power 3 | 1 2 Engine 3 | 1 2 Core . | . . Reactor . | . . Propulsion 8 | 2 6 Treads . | . . Leg 8 | 2 6 Wheel . | . . Hover . | . . Flight . | . . Utility 5 | 2 3 Device . | . . Storage 5 | 2 3 Processor . | . . Hackware . | . . Protection . | . . Artifact . | . . Weapon 11 | 1 10 Energy Gun 5 | . 5 Energy Cannon . | . . Ballistic Gun 6 | 1 5 Ballistic Cannon . | . . Launcher . | . . Special Weapon . | . . Impact Weapon . | . . Slashing Weapon . | . . Piercing Weapon . | . . Special Melee Weapon . | . . Unidentified Prototypes . | . . Parts Lost 6 | . 6 Power 1 | . 1 Propulsion 1 | . 1 Utility . | . . Weapon 4 | . 4 Highest Loss Streak 3 | . 3 Average Slot Usage (%) 98 | . 98 Engine 13 | . 13 Leg 27 | . 27 Storage 28 | . 28 Energy Gun 15 | . 15 Ballistic Gun 11 | . 11 Naked Turns . | . . Heaviest Build 41 | 15 41 Greatest Support 20 | 20 20 Greatest Overweight (x) 2 | 2 2 Average Overweight (x) . | . . Largest Inventory Capacity 16 | 8 16 Average Capacity 9 | 6 10 Most Carried 11 | 6 11 Average Carried 7 | 3 8 Final Capacity 16 | 8 16 Final Carried 10 | 6 10 Class Distribution -------------------- 63% | Mutant 36% | Scavenger-Mutant Dominant Class ---------------- Mutant | -10/Materials Resources | -11 -10 ----------- Run | Scr Mat Matter Collected 716 | 305 411 Remotely . | . . Salvage Created 836 | 135 701 Parts 71 | 16 55 Haulers Intercepted 2 | . 2 Recyclers Shooed . | . . Parts Field Recycled . | . . Retrieved Matter . | . . Parts Self-Destructed . | . . Prevented . | . . Kills | -11 -10 ------- Run | Scr Mat Combat Hostiles Destroyed 18 | . 18 Guns 18 | . 18 Classes Destroyed 7 | 3 4 Worker 5 | 2 3 Tunneler 3 | 3 . Hauler 2 | . 2 Recycler 1 | 1 . Watcher 3 | . 3 Swarmer 9 | . 9 Grunt 9 | . 9 Best Kill Streak 5 | 4 5 Combat Bots Only 4 | . 4 Max Kills in Single Turn 1 | 1 1 Gunslinging . | . . Exploded . | . . Melee . | . . Uniques/NPCs Destroyed . | . . Combat | -11 -10 -------- Run | Scr Mat Damage Taken 1093 | . 1093 Core 256 | . 256 Absorbed by Shields . | . . Core Remaining (%) 100 | 100 . Volleys Fired 112 | 17 95 Largest 2 | 1 2 Hottest 105 | 20 105 Shots Fired 177 | 17 160 Gun 177 | 17 160 Cannon . | . . Launcher . | . . Special . | . . Kinetic 129 | 17 112 Thermal 24 | . 24 Explosive . | . . Electromagnetic 24 | . 24 Robot Hit Streak 6 | 4 6 Robot Miss Streak 5 | 3 5 Penetration Max . | . . Secondary Targets 3 | . 3 Max Gunslinging Chain 1 | . 1 Shots Hit Robots 97 | 11 86 Core Hits 47 | 7 40 Critical Hits 2 | . 2 Critical Kills . | . . Critical Parts Destroyed 2 | . 2 Melee Attacks . | . . Impact . | . . Slashing . | . . Piercing . | . . Sneak Attacks . | . . Combat Hostiles . | . . Follow-up Attacks . | . . Damage Inflicted 1139 | 162 977 Guns 1135 | 162 973 Cannons . | . . Explosions . | . . Melee . | . . Ramming 4 | . 4 Kinetic 771 | 162 609 Thermal 161 | . 161 Explosive . | . . Electromagnetic 203 | . 203 Impact . | . . Slashing . | . . Piercing . | . . Highest Corruption . | . . Average Corruption . | . . Corruption Purged . | . . Overload Shots . | . . Overflow Damage . | . . Projectiles . | . . Explosions . | . . Melee . | . . Knockbacks . | . . Impact . | . . Kinetic . | . . Secondary . | . . Self-Inflicted Damage 1 | . 1 Shots . | . . Rammed 1 | . 1 Targets Rammed 2 | . 2 Kicked 1 | . 1 Crushed . | . . Highest Temperature 150 | . 150 Average Temperature 51 | . 51 Received Heat Transfer 378 | . 378 Siege Activations . | . . Robots Corrupted . | . . Combat Hostiles . | . . Parts Fried 1 | . 1 Impact Corruptions . | . . Robots Melted . | . . Combat Hostiles . | . . Parts Melted . | . . Heat Transferred 372 | . 372 Parts Sabotaged . | . . Parts Stolen . | . . Parts Stripped . | . . Power Chain Reactions . | . . Missiles Intercepted . | . . Alert | -11 -10 ------- Run | Scr Mat Peak Influence 221 | 30 221 Average Influence 50 | 8 54 Maximum Alert Level 1 | . 1 Low Security (%) 99 | . . Level 1 . | . . Level 2 . | . . Level 3 . | . . Level 4 . | . . Level 5 . | . . High Security . | . . Max Security . | . . Squads Dispatched 4 | . 4 Investigation 4 | . 4 Extermination . | . . Reinforcement . | . . Assault . | . . Garrison . | . . Intercept . | . . Construction Impeded . | . . Haulers Reinforced . | . . Stealth | -11 -10 --------- Run | Scr Mat Distress Signals 1 | . 1 Communications Jammed . | . . Distress Signals . | . . Times Spotted 35 | . 35 Peak Tracking Total 5 | . 5 Tactical Retreats 6 | . 6 Traps | -11 -10 ------- Run | Scr Mat Traps Triggered 2 | . 2 Indirectly . | . . Trap Hack Attempts . | . . Triggered . | . . Disarmed . | . . Reprogrammed . | . . Reused . | . . Traps Extracted . | . . Installed . | . . Triggered . | . . Machines | -11 -10 ---------- Run | Scr Mat Machines Disabled 1 | . 1 Max in Single Turn 1 | . 1 Machines Sabotaged . | . . Garrisons Compromised . | . . Overloaded Fab Kills . | . . Fab Network Shutdowns . | . . Hacking | -11 -10 --------- Run | Scr Mat Machines Accessed 7 | . 7 Terminals 7 | . 7 Fabricators . | . . Repair Stations . | . . Recycling Units . | . . Scanalyzers . | . . Garrison Access . | . . Total Hacks 25 | . 25 Successful 17 | . 17 Failed 8 | . 8 Catastrophic 1 | . 1 Database Lockouts . | . . Manual 14 | . 14 Terminals 25 | . 25 Fabricators . | . . Repair Stations . | . . Recycling Units . | . . Scanalyzers . | . . Garrison Access . | . . Terminal Hacks 10 | . 10 Robot Analysis 1 | . 1 Prototype ID Bank 1 | . 1 Branch Access Points 1 | . 1 Unreport Threat 1 | . 1 Locate Traps 1 | . 1 Recall Investigation 1 | . 1 Zone Layout 4 | . 4 Fabricator Hacks . | . . Repair Station Hacks . | . . Recycling Unit Hacks . | . . Scanalyzer . | . . Garrison Access Hacks . | . . Unauthorized Hacks 17 | . 17 Terminals 7 | . 7 Track 4 | . 4 Assimilate 3 | . 3 Fabricators . | . . Repair Stations . | . . Recycling Units . | . . Scanalyzers . | . . Garrison Access . | . . Data Cores Recovered . | . . Used . | . . Hacking Detections 6 | . 6 Full Trace Events 4 | . 4 Feedback Events . | . . Feedback Blocked . | . . Robot Schematics Acquired . | . . Robots Built . | . . Matter . | . . Time . | . . Total Robot Build Rating . | . . Part Schematics Acquired . | . . Parts Built . | . . Matter . | . . Time . | . . Total Part Build Rating . | . . Parts Repaired . | . . Time . | . . Parts Recycled . | . . Recycled Matter . | . . Retrieved Matter . | . . Retrieved Components . | . . Parts Scanalyzed . | . . Part Schematics Acquired . | . . Parts Damaged . | . . Bothacking | -11 -10 ------------ Run | Scr Mat Used RIF Installer . | . . Robots Hacked . | . . Non-combat . | . . Combat . | . . Robot Hacks Applied . | . . Relay Couplers Released . | . . Robots Rewired . | . . Allies Hacked . | . . Hacks Repelled . | . . Allies | -11 -10 -------- Run | Scr Mat Total Allies 1 | . 1 Largest Group 1 | . 1 Highest-Rated Group 10 | . 10 Highest-Rated Ally 10 | . 10 Total Orders . | . . Ally Attacks . | . . Total Damage . | . . Kills . | . . Allies Corrupted . | . . Allies Melted . | . . Intel | -11 -10 ------- Run | Scr Mat Robot Analysis Total 1 | . 1 Derelict Logs Recovered . | . . Drone Launches . | . . Drone Recoveries . | . . Exploration | -11 -10 ------------- Run | Scr Mat Turns Passed 1449 | 135 1314 Spaces Moved 742 | 69 673 Core 7 | 7 . Treads . | . . Legs 735 | 62 673 Wheels . | . . Hover . | . . Flight . | . . Fastest Speed 50 | 50 120 Average Speed 138 | 119 140 Slowest Speed 180 | 150 180 Overloaded Moves . | . . Propulsion Burnouts . | . . Robots Hopped . | . . Cave-ins Triggered . | . . Exploration Rate (%) 44 | 5 84 Regions Visited 1 Branch Regions . Pre-discovered Areas . | . . Known Exits Taken . | . . Unknown Exits Taken 1 | 1 . Scrap Searched . | . . Spaces Dug . | . . Terrain Destroyed . | . . Melee . | . . Projectile . | . . AOE . | . . Actions | -11 -10 --------- Run | Scr Mat Total 993 | 105 888 Wait 61 | . 61 Move 741 | 68 673 Hop . | . . Pick Up 35 | 13 22 Fast Attach 2 | . 2 Attach 13 | 6 7 Detach . | . . Swap 12 | . 12 Drop 15 | 1 14 Fire 112 | 17 95 Melee . | . . Ram . | . . Kick 2 | . 2 Crush . | . . Escape Stasis . | . . Rewire . | . . Trap . | . . Miscellaneous . | . . Route ------- -11/Scrapyard -10/Materials (discovered 5 exits: [*Mat x3] / *Min x2) History --------- Turn | Location | Event 9 | -11/Scrapyard | Discovered new exit (range 15) 136 | -11/Scrapyard | Entered Materials 317 | -10/Materials | Build established: Mutant 386 | -10/Materials | Identified exit to Mines 568 | -10/Materials | Core integrity fell below 50% 603 | -10/Materials | Lost 3 parts (1p1n1w) 688 | -10/Materials | Discovered new exit (range 16) 1073 | -10/Materials | Build established: Scavenger-Mutant 1150 | -10/Materials | Discovered new exit (range 10) 1233 | -10/Materials | Discovered new exit (range 16) 1433 | -10/Materials | Core integrity fell below 20% 1450 | -10/Materials | Destroyed by G-34 Mercenary with Small Laser Last Messages --------------- M-13 Machinist Tier: 1 M-series mechanics are valued in dangerous areas for their ability to rebuild components, repair simple core integrity, and restore missing functionality by attaching temporary backup components. Despite their well-rounded protective armor, M-13 Machinists in particular are less often used as front line units, instead operating from a designated repair station. >>Layout(Zone) Retrieving Zone 2G layout... Downloaded map data. >>Recall(Investigation) Establishing remote squad link... No tasked investigation squads found. 01260_ Terminal disabled. 01314_ Dropped Sml. Storage Unit. 01317_ Acquired Lrg. Storage Unit. 01320_ Dropped Med. Storage Unit. 01441_ Imp. Heat Sink fried. 01441_ G-47 Trooper destroyed. Map ----- +----------------------------------------------------+ | | | | | | | | | | | | | | | ???????????????????????????????????????????? | | ??????????????????????#####????????????????? | | ??????????????????????#"""#????????????????? | | ?????????????##########"Y"############?????? | | ?????????????# ^ ^ ?????? | | ?????????????# < ^ ^^ ###?????? | | ?????????????# ^ """ #???????? | | ?????????????##### """"" ########???????? | | ?????????????????# """"" #???????######+# | | ?????????????????# """"" #???????# ^ | | ?????????????????# """ ######### ^ ^ | | ?????????????????# ^ | | ?????????????????# m #??? | | ?????????????????# #T## #??? | | ??????????######## ################ #??? | | ??????????#^ = # #??????????????# #??? | | ??????????#^ # #??????????????# #### | | ??????????#^""" + ########???????# ## | | ??????????# """^ # @ # #??????## = ## | | ??????????# """ # # """ #??????# %! # | | ??????????# # u# "R" #??????# * # | | ??????????###+#### %# " " #??????# + | | ??????????# # g # #??????# # | | ??????????# """ # # #??????# # | | ??????????# """ + ###+############ ## | | ??????????# """ # ## | | ??????????# # #### | | ??????????# # #??? | | ??????????##+##### ###+############ #### | | ???????????# #???# #??? ?????????# = | | ???????????# #???# #????"""???????# | | ???????????# #???# #?????""???????# | | ???????????# #???# #??????????????# * #### | | ???#########+#???# #??????????????#!%=## | | ???# #???# #????????????? = # | | ???# #???? #???????????#"" #! | | ???# #???? #???????????#!! # | | ???# #???? #???????????#"" > # | | ???# #???? #???????????#!! ### | | ???# #???? ????????????#"" ??# | | ???# #???????#???????????#" #?# | | ???# #????? ##???????????### ##?# | | ???#####+######## #?????????????# ???# | +----------------------------------------------------+ Best States ------------- Heat Dissipation 25 Energy Generation 10 Energy Capacity 250 Matter Stores 300 Matter Capacity 300 Sight Range 16 Terrain Scan Density 10 Evasion (%) 40 Item Schematics ----------------- None Robot Schematics ------------------ None Fabricated ------------ Nothing Alien Tech Used ----------------- None Achievements -------------- None Challenges ------------ None Game ------ Seed PowerBombardmentCoupler Manual? 0 Play Time 00:29:40 Cumulative 10.1 hours Start 2019.11.03 @ 16:09:58 End 2019.11.03 @ 16:38:27 Sessions 1 Manual Loads 0 Difficulty Rogue Special Mode None Game No. 16 Rogue 16 Adventurer 0 Explorer 0 Win Type - Total 0 Types 0/0/0/0/0/0/0 Lore% 17 Gallery% 12 Achievement% 14 Wizard Run 0 Options --------- ASCII 0 Keyboard 0 Movement Mouse Keybinds 0 Fullscreen 1 Font 18/X11 Map View 76x50 Tactical HUD 1 Map Filters NONE Filters LOW_CONTRAST(13,24,33) Steam 1 RUN: a94a7b73-66e8-41d3-b4fc-ce2c7aa5dfa7